bitfinex/quotes_SOLUSD_20220118
["timestamp","ask_amount","ask_price","bid_price","bid_amount"]
[1642518692997,41.82149295,137.48,137.37,45.23642277]
[1642518693197,33.02329295,137.48,137.37,45.23642277]
[1642518693398,0.25,137.47,137.37,45.23642277]
[1642518693598,13.02329295,137.48,137.37,45.23642277]
[1642518693798,13.02329295,137.48,137.38,2.91]
[1642518694224,3.02329295,137.48,137.38,2.91]
[1642518694426,1.77329295,137.5,137.38,2.91]
[1642518694624,41.21494783,137.49,137.38,2.91]
[1642518694825,10.9138,137.48,137.38,2.91]
[1642518695024,32.12874783,137.49,137.38,2.91]
[1642518695224,32.12874783,137.49,137.37,45.23642277]
[1642518695225,22.37874783,137.49,137.37,45.23642277]
[1642518695426,0.25,137.48,137.37,45.23642277]
[1642518695826,2.62874783,137.49,137.37,45.23642277]
[1642518696025,1.77329295,137.5,137.37,45.23642277]
[1642518696228,1.77329295,137.5,137.38,0.25]
[1642518696428,28.15299295,137.52,137.39,32.91]
[1642518696630,109.1662,137.54,137.39,32.91]
[1642518696829,8.75,137.52,137.4,1.88841345]
[1642518697031,45.50264859,137.52,137.41,51.04470455]
[1642518697231,45.50264859,137.52,137.41,59.27570455]
[1642518697430,0.25,137.51,137.41,59.27570455]
[1642518697632,11.1614,137.51,137.41,59.27570455]
[1642518697829,8.75,137.5,137.41,51.04470455]
[1642518698033,39.31491595,137.49,137.41,2.908]
[1642518698231,8.75,137.48,137.41,2.908]
[1642518699030,8.75,137.48,137.41,41.27983415]
[1642518699833,8.75,137.48,137.39,2.91]
[1642518700033,8.75,137.48,137.37,2.91]
[1642518700234,19.6638,137.48,137.37,3.16]
[1642518700935,19.6638,137.48,137.38,37.03858702]
[1642518701138,19.6638,137.48,137.39,2.91]
[1642518701337,19.6638,137.48,137.39,3.16]
[1642518701737,8.75,137.48,137.39,3.16]
[1642518702739,8.75,137.48,137.39,2.91]
[1642518702937,64.0,137.47,137.28,8.75]
[1642518703137,8.75,137.46,137.4,20.0]
[1642518703338,7.75,137.46,137.4,20.0]
[1642518703538,3.159,137.45,137.4,20.0]
[1642518703738,1.909,137.45,137.4,20.0]
[1642518704338,0.909,137.45,137.4,20.0]
[1642518704741,0.909,137.45,137.41,48.44671073]
[1642518705038,24.1654,137.47,137.41,48.44671073]
[1642518705266,30.6554,137.5,137.41,48.44671073]
[1642518705641,29.9054,137.5,137.41,48.44671073]
[1642518705839,28.9054,137.5,137.41,48.44671073]
[1642518706339,27.9054,137.5,137.41,48.44671073]
[1642518706543,10.9129,137.49,137.41,48.44671073]
[1642518706944,37.03833838,137.48,137.4,20.0]
[1642518707245,0.25,137.47,137.4,20.0]
[1642518707441,10.9181,137.45,137.4,20.0]
[1642518708040,0.25,137.44,137.4,20.0]
[1642518708544,74.9179,137.43,137.3,33.4014]
[1642518708742,0.25,137.42,137.3,33.4014]
[1642518709144,0.25,137.42,137.31,0.25]
[1642518709341,0.25,137.42,137.32,2.911]
[1642518709744,47.3916,137.45,137.33,0.25]
[1642518709942,10.918,137.43,137.34,2.911]
[1642518710143,47.3916,137.45,137.34,2.911]
[1642518710342,47.3916,137.45,137.35,11.1658]
[1642518710543,47.3916,137.45,137.37,36.6319613]
[1642518710842,23.8285,137.51,137.37,36.6319613]
[1642518711042,19.6634,137.49,137.38,3.16]
[1642518711242,10.9134,137.49,137.38,3.16]
[1642518711842,39.42451935,137.48,137.38,3.16]
[1642518712041,39.42451935,137.48,137.38,2.91]
[1642518712243,10.9156,137.46,137.38,2.91]
[1642518712444,38.41408175,137.45,137.37,36.6319613]
[1642518712644,38.66408175,137.45,137.38,6.0]
[1642518713042,38.66408175,137.45,137.36,2.91]
[1642518713244,10.9173,137.44,137.36,2.91]
[1642518713643,0.25,137.43,137.36,2.91]
[1642518714851,10.9197,137.41,137.36,2.91]
[1642518715246,0.25,137.4,137.36,2.91]
[1642518715446,10.9197,137.41,137.31,2.911]
[1642518715646,10.9197,137.41,137.32,43.41348186]
[1642518715846,10.9175,137.43,137.32,54.33248186]
[1642518716048,125.2814,137.45,137.33,77.011]
[1642518716246,125.2814,137.45,137.34,8.75]
[1642518716446,125.2814,137.45,137.35,2.911]
[1642518716648,174.0043218,137.45,137.36,39.10666511]
[1642518716847,174.0043218,137.45,137.37,2.911]
[1642518717050,174.0043218,137.45,137.36,40.73205952]
[1642518717249,11.1668,137.44,137.36,39.10666511]
[1642518718648,125.2814,137.45,137.36,39.10666511]
[1642518718949,78.5009,137.45,137.37,0.25]
[1642518719951,39.60471347,137.44,137.36,39.10666511]
[1642518720151,39.60471347,137.44,137.36,50.02276511]
[1642518720550,78.5009,137.45,137.36,50.02276511]
[1642518721048,8.75,137.49,137.36,50.02276511]
[1642518721250,10.9156,137.46,137.37,3.16]
[1642518721449,45.25291762,137.45,137.38,10.9148]
[1642518721650,45.25291762,137.45,137.39,44.48501623]
[1642518722053,45.25291762,137.45,137.39,41.57501623]
[1642518722250,45.25291762,137.45,137.35,2.91]
[1642518722452,45.25291762,137.45,137.36,0.25]
[1642518722654,45.25291762,137.45,137.37,2.911]
[1642518722853,10.9149,137.47,137.37,13.8267]
[1642518723053,22.6787,137.48,137.38,0.25]
[1642518723251,22.6787,137.48,137.38,1.87826392]
[1642518723451,22.6787,137.48,137.38,0.25]
[1642518723452,0.25,137.47,137.38,0.25]
[1642518723854,45.71582281,137.47,137.38,41.33490436]
[1642518724251,56.63022281,137.47,137.38,52.24930436]
[1642518724853,56.63022281,137.47,137.39,2.91]
[1642518725052,56.63022281,137.47,137.36,2.91]
[1642518725257,56.63022281,137.47,137.36,11.91]
[1642518725853,56.63022281,137.47,137.37,42.2890965]
[1642518726061,56.63022281,137.47,137.36,22.5761]
[1642518726255,8.75,137.46,137.33,4.53826392]
[1642518726455,84.7707,137.43,137.3,2.911]
[1642518726655,99.4167,137.43,137.3,2.911]
[1642518726857,0.25,137.42,137.3,2.911]
[1642518727055,38.66597405,137.42,137.31,44.113198]
[1642518727255,36.4066,137.41,137.31,45.74146192]
[1642518727456,10.922,137.39,137.31,45.74146192]
[1642518727656,46.40159049,137.39,137.31,45.74146192]
[1642518727858,46.40159049,137.39,137.3,2.911]
[1642518728056,0.25,137.38,137.29,2.912]
[1642518728457,10.9241,137.36,137.29,2.912]
[1642518728859,35.15114652,137.35,137.29,2.912]
[1642518729862,10.9256,137.34,137.3,38.19977779]
[1642518730260,10.9256,137.34,137.27,111.7]
[1642518730863,10.9256,137.34,137.28,1.62826392]
[1642518731069,10.9256,137.34,137.27,111.7]
[1642518731361,10.9256,137.34,137.29,47.34203175]
[1642518731559,10.9239,137.35,137.29,47.34203175]
[1642518731760,10.9239,137.35,137.3,4.54026392]
[1642518731961,10.9239,137.35,137.3,1.62826392]
[1642518732160,10.9239,137.35,137.29,47.34203175]
[1642518732364,10.9239,137.35,137.29,48.97029567]
[1642518733762,23.0545,137.38,137.29,48.97029567]
[1642518733963,10.923,137.37,137.3,0.25]
[1642518734164,10.923,137.37,137.3,9.0]
[1642518734367,10.923,137.37,137.31,1.62826392]
[1642518734566,25.66079917,137.42,137.32,8.75]
[1642518734766,37.40094288,137.41,137.33,46.60680534]
[1642518734966,10.9215,137.39,137.33,48.23506926]
[1642518735167,10.9215,137.39,137.34,1.62826392]
[1642518735367,2.05629917,137.43,137.34,75.47826392]
[1642518735571,2.05629917,137.43,137.35,0.25]
[1642518735766,81.80149917,137.45,137.35,10.37826392]
[1642518735967,81.80149917,137.45,137.37,10.9163]
[1642518736166,81.80149917,137.45,137.37,13.8263]
[1642518736367,39.16663995,137.44,137.37,15.45456392]
[1642518736770,39.16663995,137.44,137.37,24.20456392]
[1642518736971,39.16663995,137.44,137.38,10.9151]
[1642518737371,79.7452,137.45,137.39,44.198592]
[1642518737570,10.9147,137.47,137.39,44.198592]
[1642518737771,0.25,137.46,137.37,10.37826392]
[1642518737971,10.917,137.45,137.37,10.37826392]
[1642518738175,0.25,137.46,137.38,10.9158]
[1642518738772,0.25,137.48,137.38,10.9158]
[1642518738974,36.10546644,137.48,137.39,37.10819389]
[1642518739175,36.10546644,137.48,137.38,10.9158]
[1642518739375,10.9155,137.47,137.37,8.75]
[1642518739574,10.9155,137.47,137.38,8.75]
[1642518739775,0.25,137.46,137.36,10.917]
[1642518740173,0.25,137.46,137.36,50.96248543]
[1642518740372,10.917,137.45,137.36,50.96248543]
[1642518740572,45.02666976,137.44,137.36,50.96248543]
[1642518740776,45.27666976,137.44,137.36,10.917]
[1642518740975,45.27666976,137.44,137.35,11.66]
[1642518742079,56.19456976,137.44,137.35,22.5781]
[1642518742278,52.19456976,137.44,137.35,11.66]
[1642518742477,52.19456976,137.44,137.35,8.75]
[1642518743498,52.19456976,137.44,137.35,19.6681]
[1642518746102,52.19456976,137.44,137.35,10.9181]
[1642518746702,52.19456976,137.44,137.36,2.911]
[1642518746902,52.19456976,137.44,137.37,41.56069384]
[1642518747702,52.19456976,137.44,137.36,2.911]
[1642518747903,52.19456976,137.44,137.32,1.62826392]
[1642518748103,100.51475272,137.43,137.31,2.911]
[1642518748402,10.9253,137.4,137.31,2.911]
[1642518748605,50.71619478,137.4,137.32,35.1091952]
[1642518748804,0.25,137.39,137.32,35.1091952]
[1642518750303,45.1676,137.41,137.32,35.1091952]
[1642518750506,10.9219,137.39,137.32,36.73608074]
[1642518751308,52.89819536,137.39,137.32,36.73608074]
[1642518752510,11.1727,137.38,137.32,36.73608074]
[1642518753313,10.9227,137.38,137.32,36.73608074]
[1642518754056,10.9211,137.4,137.32,36.73608074]
[1642518754217,35.68199917,137.43,137.33,0.25]
[1642518754419,2.05629917,137.43,137.33,3.161]
[1642518754616,2.05629917,137.43,137.34,1.62688554]
[1642518754818,2.05629917,137.44,137.35,46.36725323]
[1642518755020,7.60334799,137.48,137.35,57.53525323]
[1642518755216,6.16968646,137.5,137.36,10.37688554]
[1642518755417,6.16968646,137.5,137.37,76.76]
[1642518755617,6.16968646,137.5,137.38,8.75]
[1642518755816,6.16968646,137.5,137.39,3.16]
[1642518756018,46.6864,137.54,137.4,49.85279913]
[1642518756217,46.6864,137.54,137.41,3.158]
[1642518756420,46.6864,137.54,137.43,39.43028951]
[1642518756620,46.6864,137.54,137.41,10.53488554]
[1642518756621,66.78905272,137.53,137.41,4.53488554]
[1642518756818,0.30869966,137.51,137.32,2.909]
[1642518757118,0.30869966,137.51,137.36,1.62688554]
[1642518757119,73.85,137.5,137.36,1.62688554]
[1642518757318,73.85,137.5,137.32,11.659]
[1642518757319,80.553,137.5,137.35,8.75]
[1642518757518,70.59961014,137.49,137.36,36.27862386]
[1642518757717,70.59961014,137.49,137.37,2.91]
[1642518758117,33.8692,137.49,137.37,2.91]
[1642518758317,0.25,137.49,137.37,4.53021441]
[1642518758518,36.59,137.51,137.38,20.76322562]
[1642518758719,0.25,137.5,137.38,21.01322562]
[1642518758920,0.25,137.5,137.39,12.01322562]
[1642518759118,0.25,137.5,137.39,58.43162576]
[1642518759323,0.25,137.5,137.4,0.25]
[1642518759523,11.162,137.5,137.42,43.0027523]
[1642518760521,35.29250476,137.49,137.4,46.64277049]
[1642518760719,11.162,137.5,137.41,2.91]
[1642518761622,47.29110308,137.49,137.41,13.8218]
[1642518762422,10.912,137.5,137.41,13.8218]
[1642518762622,24.6012,137.51,137.41,13.8218]
[1642518762826,0.25,137.5,137.41,13.8218]
[1642518763022,0.25,137.5,137.41,22.5718]
[1642518763221,0.25,137.51,137.41,24.18803388]
[1642518763427,41.28573014,137.51,137.41,24.18803388]
[1642518763625,41.03573014,137.51,137.41,24.18803388]
[1642518763824,41.03573014,137.51,137.41,4.52623388]
[1642518764022,41.03573014,137.51,137.41,2.91]
[1642518764426,2.908,137.5,137.41,2.91]
[1642518764927,2.908,137.5,137.41,15.43773388]
[1642518765125,2.908,137.5,137.42,0.25]
[1642518765326,41.03573014,137.51,137.42,0.25]
[1642518765527,41.03573014,137.51,137.42,1.86623388]
[1642518765725,41.03573014,137.51,137.43,47.80761212]
[1642518765925,41.03573014,137.51,137.41,2.91]
[1642518766126,3.158,137.5,137.41,2.91]
[1642518766526,2.908,137.5,137.41,2.91]
[1642518766728,43.94573014,137.51,137.38,11.66]
[1642518766927,41.03573014,137.51,137.39,44.37599908]
[1642518767128,41.03573014,137.51,137.4,2.91]
[1642518767328,51.94713014,137.51,137.42,37.84754324]
[1642518767529,54.85513014,137.51,137.4,2.91]
[1642518767729,0.25,137.5,137.4,2.91]
[1642518767930,2.91,137.49,137.37,2.91]
[1642518768128,2.91,137.49,137.35,2.91]
[1642518768330,10.9156,137.47,137.35,13.8263]
[1642518768631,35.76795951,137.45,137.36,42.62630715]
[1642518769355,35.76795951,137.45,137.36,53.54190715]
[1642518769853,24.9315,137.48,137.37,3.161]
[1642518770256,24.9315,137.48,137.38,1.61623388]
[1642518770455,24.9315,137.48,137.39,13.8226]
[1642518770856,41.72286124,137.47,137.4,37.23637524]
[1642518771057,41.72286124,137.47,137.37,2.91]
[1642518771058,41.97286124,137.47,137.37,2.91]
[1642518771257,2.91,137.46,137.35,2.91]
[1642518771461,2.91,137.46,137.33,2.911]
[1642518771658,0.25,137.45,137.35,0.25]
[1642518771862,2.91,137.44,137.35,0.25]
[1642518772062,42.21000367,137.43,137.35,0.25]
[1642518772359,53.12780367,137.43,137.35,0.25]
[1642518772559,42.21000367,137.43,137.34,38.98887412]
[1642518772759,0.25,137.42,137.34,38.98887412]
[1642518772961,2.911,137.41,137.32,8.75]
[1642518773159,2.911,137.41,137.33,0.25]
[1642518773361,2.911,137.42,137.33,11.1681]
[1642518773563,23.4382,137.46,137.34,1.61623388]
[1642518773761,23.4382,137.46,137.35,0.25]
[1642518774062,23.4382,137.46,137.35,1.61623388]
[1642518774264,3.161,137.45,137.35,1.61623388]
[1642518774471,0.25,137.45,137.35,1.61623388]
[1642518774765,38.61346658,137.44,137.36,37.42176003]
[1642518775261,38.61346658,137.44,137.37,0.25]
[1642518775463,38.61346658,137.44,137.36,48.33686003]
[1642518775661,38.61346658,137.44,137.37,0.25]
[1642518775862,34.3539,137.46,137.37,0.25]
[1642518776066,23.4382,137.46,137.37,74.1]
[1642518776363,2.911,137.47,137.38,1.61623388]
[1642518776663,26.7004,137.49,137.38,10.36623388]
[1642518776862,41.08481645,137.48,137.4,44.12518542]
[1642518778264,41.08481645,137.48,137.41,0.25]
[1642518778563,41.08481645,137.48,137.4,44.12518542]
[1642518779164,0.25,137.47,137.39,2.91]
[1642518779365,0.25,137.47,137.38,8.75]
[1642518779566,2.91,137.46,137.35,8.75]
[1642518779764,2.91,137.46,137.36,3.161]
[1642518779964,2.91,137.46,137.36,2.911]
[1642518780166,41.38848923,137.45,137.34,2.91]
[1642518780464,2.911,137.44,137.34,2.91]
[1642518780765,2.911,137.44,137.33,8.75]
[1642518780965,2.911,137.44,137.33,11.661]
[1642518781164,26.8174,137.44,137.33,13.27320396]
[1642518781366,26.8174,137.44,137.34,42.6328241]
[1642518781764,38.7370668,137.42,137.35,0.25]
[1642518781966,38.7370668,137.42,137.35,3.161]
[1642518782168,38.7370668,137.42,137.35,2.911]
[1642518783267,38.7370668,137.42,137.34,53.5501241]
[1642518783268,41.6480668,137.42,137.34,53.5501241]
[1642518783468,38.7370668,137.42,137.35,0.25]
[1642518784066,38.7370668,137.42,137.34,58.07332806]
[1642518784277,38.7370668,137.42,137.34,55.16232806]
[1642518784873,49.6553668,137.42,137.34,55.16232806]
[1642518785774,13.8273,137.44,137.35,0.25]
[1642518785975,2.911,137.45,137.36,10.9158]
[1642518786175,2.911,137.47,137.37,2.911]
[1642518786586,2.911,137.47,137.37,4.52610658]
[1642518786875,44.44371321,137.46,137.38,42.98515785]
[1642518787076,44.69371321,137.46,137.38,41.37005127]
[1642518787279,44.44371321,137.46,137.38,41.37005127]
[1642518787477,55.35951321,137.46,137.38,41.37005127]
[1642518788077,55.35951321,137.46,137.37,2.911]
[1642518788478,10.9189,137.43,137.35,0.25]
[1642518788680,10.9189,137.43,137.34,0.25]
[1642518789089,39.8099745,137.42,137.34,45.70447581]
[1642518789796,39.8099745,137.42,137.33,22.578]
[1642518789987,50.7288745,137.42,137.33,11.66]
[1642518790784,50.7288745,137.42,137.33,50.7905254]
[1642518790984,2.911,137.41,137.33,50.7905254]
[1642518791389,37.31394117,137.38,137.33,50.7905254]
[1642518791587,37.31394117,137.38,137.33,11.66]
[1642518791788,37.31394117,137.38,137.33,2.91]
[1642518792186,37.31394117,137.38,137.32,111.7]
[1642518793587,48.23544117,137.38,137.32,111.7]
[1642518794488,10.9239,137.36,137.3,10.0]
[1642518794688,0.25,137.35,137.3,10.0]
[1642518794891,32.0,137.33,137.27,3.83977471]
[1642518795188,2.91,137.34,137.27,47.6234602]
[1642518795410,23.5965,137.38,137.28,15.13666096]
[1642518795614,10.923,137.37,137.29,10.9224]
[1642518795811,10.923,137.37,137.3,2.912]
[1642518796110,10.923,137.37,137.3,4.52710658]
[1642518796310,52.17398513,137.37,137.31,46.19370196]
[1642518796517,52.17398513,137.37,137.3,2.912]
[1642518796711,52.17398513,137.37,137.28,4.52710658]
[1642518796910,55.08198513,137.37,137.28,4.52710658]
[1642518797514,55.08198513,137.37,137.28,46.24956289]
[1642518797815,0.25,137.36,137.28,2.912]
[1642518798013,10.9251,137.34,137.27,8.75]
[1642518798214,10.9251,137.34,137.26,10.9246]
[1642518798615,38.58375888,137.33,137.26,10.9246]
[1642518799115,0.25,137.32,137.25,2.912]
[1642518799315,3.162,137.32,137.24,10.9263]
[1642518799515,3.162,137.32,137.23,3.83977471]
[1642518799716,0.25,137.32,137.23,3.83977471]
[1642518799915,0.25,137.32,137.24,37.3677507]
[1642518800315,0.25,137.32,137.23,1.61510658]
[1642518801317,11.1773,137.32,137.22,2.912]
[1642518801524,2.911,137.31,137.21,3.83977471]
[1642518801817,0.25,137.3,137.21,3.83977471]
[1642518802017,2.91,137.29,137.21,3.83977471]
[1642518802225,11.1816,137.28,137.21,3.83977471]
[1642518802518,37.33408434,137.26,137.19,5.64693665]
[1642518802721,3.157,137.25,137.19,5.64693665]
[1642518803218,2.907,137.25,137.19,5.64693665]
[1642518803418,13.8393,137.25,137.19,5.64693665]
[1642518803617,10.9323,137.25,137.19,5.64693665]
[1642518803821,10.9323,137.25,137.16,2.915]
[1642518804018,37.33408434,137.26,137.16,2.915]
[1642518804218,37.33408434,137.26,137.21,49.56738608]
[1642518804622,37.33408434,137.26,137.2,1.61510658]
[1642518805022,37.33408434,137.26,137.2,12.54490658]
[1642518805918,37.33408434,137.26,137.2,10.9298]
[1642518806719,0.25,137.25,137.18,2.914]
[1642518806922,0.25,137.25,137.17,10.9322]
[1642518807119,0.25,137.25,137.15,32.7891]
[1642518807120,11.1829,137.25,137.15,35.7041]
[1642518807321,34.1145,137.25,137.15,11.665]
[1642518808321,34.1145,137.25,137.15,2.915]
[1642518808521,10.9357,137.21,137.12,10.936]
[1642518808721,65.0,137.23,137.1,2.915]
[1642518808722,3.166,137.2,137.1,2.915]
[1642518808921,0.25,137.2,137.09,22.27555438]
[1642518809121,0.25,137.2,137.09,19.35955438]
[1642518809122,2.916,137.19,137.09,19.35955438]
[1642518809523,35.55714149,137.18,137.09,8.75]
[1642518809723,2.916,137.17,137.09,8.75]
[1642518809924,35.55714149,137.18,137.09,8.75]
[1642518810224,35.30714149,137.18,137.09,8.75]
[1642518810422,35.30714149,137.18,137.11,48.74746262]
[1642518811423,35.30714149,137.18,137.11,10.9369]
[1642518811624,38.22314149,137.18,137.11,10.9369]
[1642518812223,0.25,137.17,137.11,10.9369]
[1642518812423,23.9316,137.2,137.11,10.9369]
[1642518812424,2.916,137.19,137.11,10.9369]
[1642518812624,2.916,137.22,137.12,0.25]
[1642518812825,31.3806,137.23,137.14,10.9346]
[1642518813424,46.58117661,137.22,137.14,10.9346]
[1642518813626,13.8509,137.21,137.11,1.61510658]
[1642518813825,14.1009,137.21,137.11,10.9375]
[1642518814828,14.1009,137.21,137.09,48.39586228]
[1642518815026,14.1009,137.21,137.09,59.33436228]
[1642518815431,14.1009,137.21,137.09,57.7192557]
[1642518815627,14.1009,137.21,137.09,10.9385]
[1642518815826,14.1009,137.21,137.07,11.666]
[1642518816027,24.1509,137.2,137.07,22.6062]
[1642518816226,10.9398,137.17,137.07,22.6062]
[1642518816427,3.166,137.19,137.07,24.22130658]
[1642518816626,45.94824287,137.18,137.08,43.25923312]
[1642518816827,45.94824287,137.18,137.09,2.916]
[1642518817230,45.94824287,137.18,137.09,13.8544]
[1642518817429,56.88664287,137.18,137.09,13.8544]
[1642518818036,0.25,137.17,137.09,10.9384]
[1642518818430,11.1892,137.17,137.09,10.9384]
[1642518818832,11.1892,137.17,137.08,13.856]
[1642518819031,85.0392,137.17,137.08,10.94]
[1642518819230,91.0092,137.17,137.08,10.94]
[1642518819436,91.0092,137.17,137.07,2.916]
[1642518819635,48.06520204,137.15,137.08,44.90964822]
[1642518819830,59.00600204,137.15,137.08,44.90964822]
[1642518820032,0.25,137.14,137.08,44.90964822]
[1642518822538,5.985,137.14,137.06,2.916]
[1642518822836,93.6926,137.14,137.04,2.916]
[1642518823034,117.3702,137.14,137.03,8.75]
[1642518824235,117.3702,137.14,137.01,10.9448]
[1642518824435,117.3702,137.14,137.02,8.918]
[1642518824636,117.3702,137.14,137.0,8.75]
[1642518824637,117.3702,137.14,137.01,8.918]
[1642518825039,117.3702,137.14,137.01,2.918]
[1642518825437,126.1202,137.14,137.01,2.918]
[1642518826037,35.4590606,137.12,137.01,2.918]
[1642518826240,46.22406211,137.09,136.98,51.82588289]
[1642518826439,76.768,137.08,136.98,54.74388289]
[1642518826641,3.168,137.08,136.98,54.74388289]
[1642518826838,69.12206211,137.09,136.99,11.919]
[1642518827037,46.22406211,137.09,136.99,11.669]
[1642518827239,76.668,137.08,136.95,1.61510658]
[1642518827439,78.45705272,137.08,136.92,8.56493665]
[1642518827639,78.45705272,137.08,136.92,5.64693665]
[1642518827640,1.78905272,137.07,136.92,5.64693665]
[1642518827843,2.919,137.06,136.92,5.64693665]
[1642518828039,73.85,137.04,136.92,5.64693665]
[1642518828240,10.955,137.0,136.92,5.64693665]
[1642518828443,2.92,136.99,136.92,5.64693665]
[1642518828640,3.17,136.99,136.92,5.64693665]
[1642518828840,0.25,136.99,136.92,5.64693665]
[1642518829241,41.20638379,136.99,136.92,5.64693665]
[1642518829443,10.955,136.97,136.89,40.66200534]
[1642518829641,41.27948606,136.96,136.89,40.66200534]
[1642518829842,41.52948606,136.96,136.89,40.66200534]
[1642518830243,41.52948606,136.96,136.88,10.954]
[1642518830441,52.48468606,136.96,136.87,11.67]
[1642518831243,52.48468606,136.96,136.87,47.03522226]
[1642518831750,52.48468606,136.96,136.87,8.75]
[1642518831945,60.77868606,136.96,136.86,2.92]
[1642518832147,2.92,136.95,136.85,2.92]
[1642518832345,10.9579,136.93,136.85,2.92]
[1642518832748,46.51480513,136.93,136.86,45.40281389]
[1642518832955,24.1014,136.96,136.87,2.92]
[1642518833547,2.92,136.99,136.87,2.92]
[1642518833845,10.9543,136.98,136.87,9.01]
[1642518834046,2.92,137.01,136.88,83.02]
[1642518834248,75.7428,137.03,136.89,8.75]
[1642518834548,75.7428,137.03,136.9,8.92]
[1642518834750,75.7428,137.03,136.9,9.43]
[1642518834947,48.80592167,137.02,136.91,44.03235362]
[1642518835148,10.9519,137.01,136.91,54.98435362]
[1642518835550,0.25,137.0,136.91,54.98435362]
[1642518835751,0.25,137.0,136.92,0.25]
[1642518836350,11.2027,137.0,136.92,11.2017]
[1642518836652,37.25010179,136.99,136.92,11.2017]
[1642518836853,37.25010179,136.99,136.93,36.94217794]
[1642518837650,37.25010179,136.99,136.92,10.9517]
[1642518838053,37.25010179,136.99,136.9,2.92]
[1642518838250,3.17,136.98,136.89,8.75]
[1642518838451,3.17,136.98,136.9,6.0]
[1642518838655,3.17,136.98,136.89,8.75]
[1642518838953,87.9741,136.98,136.87,2.92]
[1642518839150,87.9741,136.98,136.86,158.22528572]
[1642518839351,87.9741,136.98,136.87,10.9551]
[1642518839553,87.9741,136.98,136.86,8.75]
[1642518839751,14.1241,136.98,136.86,8.75]
[1642518840553,19.7291,136.98,136.86,8.75]
[1642518840752,28.4791,136.98,136.83,120.45]
[1642518841155,28.4791,136.98,136.83,120.71]
[1642518841355,28.4791,136.98,136.84,0.25]
[1642518841654,24.8045,136.97,136.84,3.17]
[1642518841852,35.15975469,136.93,136.84,48.18885172]
[1642518842455,2.922,136.97,136.84,59.14675172]
[1642518842655,2.92,136.98,136.85,88.6]
[1642518842855,2.92,136.98,136.86,2.92]
[1642518843053,2.92,137.01,136.87,14.75]
[1642518843254,2.92,137.01,136.88,2.92]
[1642518843453,46.32877034,137.0,136.89,47.51999791]
[1642518843653,46.32877034,137.0,136.93,38.22500648]
[1642518844278,0.25,136.99,136.93,38.22500648]
[1642518844478,0.25,136.99,136.9,2.92]
[1642518844678,3.17,136.99,136.89,19.9535]
[1642518845479,3.17,136.99,136.9,43.83443929]
[1642518845879,3.17,136.99,136.89,19.7035]
[1642518846080,14.1232,136.99,136.87,2.92]
[1642518846279,15.91225272,136.99,136.87,2.92]
[1642518846980,8.75,136.98,136.87,2.92]
[1642518847179,10.9578,136.94,136.87,2.92]
[1642518847382,42.47810117,136.93,136.87,2.92]
[1642518847579,42.72810117,136.93,136.85,10.9572]
[1642518847780,45.65010117,136.93,136.85,10.9572]
[1642518847982,42.72810117,136.93,136.85,10.9572]
[1642518848186,0.25,136.92,136.85,13.8792]
[1642518848381,0.25,136.92,136.85,10.9572]
[1642518848984,11.2085,136.92,136.83,2.922]
[1642518849186,11.2085,136.92,136.82,11.672]
[1642518849388,11.2085,136.92,136.82,17.922]
[1642518850387,11.2085,136.92,136.82,28.8812]
[1642518850592,11.2085,136.92,136.82,17.922]
[1642518853888,11.2085,136.92,136.82,60.4530014]
[1642518854090,11.2085,136.92,136.82,71.4129014]